bitfinex/quotes_ETHUSD_20250725
["timestamp","ask_amount","ask_price","bid_price","bid_amount"]
[1753480973096,2.471,3727.0,3726.6,0.1344]
[1753480973300,0.1344,3727.2,3726.8,2.68323965]
[1753480973506,3.3788,3727.1,3726.8,2.81763965]
[1753480973738,3.73012,3727.1,3726.8,2.81763965]
[1753480974237,3.73012,3727.1,3726.8,0.1344]
[1753480974532,1.25912,3727.1,3726.8,2.81764562]
[1753480974698,2.47,3727.0,3726.8,2.81764562]
[1753480975336,2.47,3727.0,3726.8,0.1344]
[1753480975503,3.3778,3727.0,3726.8,0.1344]
[1753480976236,2.47,3727.0,3726.8,2.8176595]
[1753480976741,2.47,3727.0,3726.8,0.1344]
[1753480977942,2.9304,3727.0,3726.8,0.1344]
[1753480978741,0.9078,3726.9,3726.2,0.19896169]
[1753480978950,0.4474,3726.9,3726.6,0.1344]
[1753480979240,0.9078,3726.8,3726.6,0.1344]
[1753480979959,0.9078,3726.7,3725.8,4.2]
[1753480980172,0.9078,3726.7,3726.3,0.1344]
[1753480980327,0.1344,3726.8,3726.3,0.1344]
[1753480980530,0.9078,3726.7,3725.7,2.68399291]
[1753480980725,1.0422,3726.6,3726.1,0.1344]
[1753480980925,0.7751,3727.4,3726.0,7.89437206]
[1753480981160,2.469,3727.3,3726.8,2.68324069]
[1753480981344,2.469,3727.3,3726.9,0.1344]
[1753480981345,0.4604,3727.2,3726.9,0.1344]
[1753480981644,0.9078,3727.2,3726.9,0.1344]
[1753480981974,0.9078,3727.2,3727.0,2.68311988]
[1753480982134,0.9078,3727.2,3727.1,2.68305116]
[1753480982484,0.9078,3727.2,3726.9,0.1344]
[1753480982485,3.3768,3727.2,3726.9,0.1344]
[1753480982830,0.9078,3727.2,3726.9,0.1344]
[1753480983062,2.469,3727.1,3726.9,0.1344]
[1753480983587,2.469,3727.1,3726.9,2.81757724]
[1753480984383,2.469,3727.1,3727.0,2.68312315]
[1753480984884,2.469,3727.1,3726.9,2.81756726]
[1753480988388,2.9294,3727.1,3726.9,2.81756726]
[1753480989687,2.469,3727.0,3726.9,2.81756463]
[1753480990684,2.469,3727.0,3726.9,3.38745674]
[1753480991687,0.4604,3727.3,3727.0,2.68310554]
[1753480991886,1.2225,3727.4,3726.9,0.70429211]
[1753480991887,0.7751,3727.4,3726.9,0.70429211]
[1753480992073,2.469,3727.2,3727.1,2.68300005]
[1753480992588,2.469,3727.2,3727.1,2.81740005]
[1753480993161,2.469,3727.2,3727.1,0.1344]
[1753480993666,2.469,3727.2,3727.1,2.81745116]
[1753480994064,2.469,3727.2,3727.1,0.1344]
[1753480994597,0.7621,3727.7,3727.6,2.68269127]
[1753480994893,0.4604,3727.7,3727.3,0.617]
[1753480995099,2.469,3728.1,3727.6,2.68269112]
[1753480995389,2.469,3728.0,3727.3,0.617]
[1753480995590,2.469,3728.0,3726.7,5.469]
[1753480995591,0.9078,3727.9,3727.1,0.617]
[1753480995798,1.6699,3727.8,3726.9,0.4667]
[1753480996014,1.6699,3727.8,3727.0,0.65527]
[1753480996160,1.6699,3727.8,3726.6,0.19802013]
[1753480996161,0.9078,3727.7,3726.6,0.19802013]
[1753480996362,0.9078,3727.6,3727.1,2.68300262]
[1753480996592,0.4474,3727.5,3727.0,2.68310261]
[1753480996787,0.7621,3727.8,3727.0,2.68310261]
[1753480997057,0.7621,3727.8,3726.8,0.4667]
[1753480997263,2.469,3727.7,3727.4,2.68279261]
[1753480997785,2.9294,3727.7,3727.4,2.68279261]
[1753480998305,2.469,3727.7,3727.3,2.68289264]
[1753480998595,1.6584,3727.6,3726.6,0.20240344]
[1753480998799,1.6584,3727.6,3727.0,2.6831221]
[1753480999099,0.9078,3727.5,3727.0,2.6831221]
[1753480999572,0.7506,3727.6,3726.7,0.28858685]
[1753480999761,0.7506,3727.8,3726.9,0.617]
[1753480999961,2.468,3727.7,3727.3,2.6828611]
[1753481000367,3.4186,3727.7,3727.3,2.6828611]
[1753481000567,3.4186,3727.7,3727.1,2.68305116]
[1753481000568,0.9506,3727.6,3726.9,0.617]
[1753481000790,0.9506,3727.5,3726.6,0.81592067]
[1753481000997,0.471,3727.5,3727.1,2.68299217]
[1753481001198,0.4796,3727.4,3727.1,2.68299217]
[1753481001494,0.9506,3727.3,3726.8,2.68326714]
[1753481001699,0.9506,3727.3,3726.7,3.37889652]
[1753481001866,0.9506,3727.3,3726.9,2.6831387]
[1753481002067,0.9506,3727.3,3727.0,2.68310409]
[1753481002467,0.7506,3727.8,3726.9,0.73344559]
[1753481002667,3.4186,3727.7,3727.2,2.68293082]
[1753481002880,0.7506,3727.8,3727.2,2.68293082]
[1753481002881,3.4186,3727.6,3727.2,2.68293082]
[1753481003098,0.4796,3727.5,3727.2,2.68293082]
[1753481003265,0.9506,3727.5,3727.2,2.68293082]
[1753481003474,0.9506,3727.5,3727.3,2.68290356]
[1753481003872,2.468,3727.4,3727.3,2.68290356]
[1753481004535,0.4796,3727.9,3727.4,2.68282707]
[1753481004808,3.553,3727.8,3727.4,2.68282707]
[1753481004970,3.553,3727.8,3727.5,2.68275318]
[1753481004971,2.468,3727.7,3727.5,2.68275318]
[1753481005171,0.8326,3728.1,3726.8,0.617]
[1753481005172,3.51494142,3728.1,3726.8,0.617]
[1753481005407,0.8326,3727.6,3727.1,0.1344]
[1753481005607,0.9506,3727.5,3727.1,2.81742652]
[1753481005822,3.4196,3727.4,3727.1,2.81742561]
[1753481006326,0.9506,3727.3,3727.1,2.81742444]
[1753481006534,0.9506,3727.3,3726.3,4.2]
[1753481006838,1.8524,3727.2,3726.6,2.8178053]
[1753481007042,0.9018,3727.2,3726.9,2.68315313]
[1753481007205,0.7674,3727.2,3726.9,0.1344]
[1753481007525,2.47,3727.1,3727.0,2.68312315]
[1753481007694,2.47,3727.1,3726.6,0.8318]
[1753481007695,2.47,3727.1,3726.6,0.4565]
[1753481008025,3.4206,3727.1,3726.9,2.81757829]
[1753481009087,0.1344,3727.4,3726.9,0.1344]
[1753481009292,2.47,3727.3,3727.2,2.68291692]
[1753481009750,3.4206,3727.3,3726.7,0.15552]
[1753481009948,0.9506,3727.2,3726.9,2.81754721]
[1753481010154,0.9506,3727.1,3726.9,2.81754721]
[1753481010353,1.718,3727.0,3726.6,0.19969632]
[1753481010527,1.718,3727.5,3727.2,2.68291439]
[1753481010727,2.471,3727.4,3727.1,2.68302089]
[1753481010927,2.9506,3727.4,3727.2,2.81737708]
[1753481011127,3.4216,3727.4,3727.2,2.81737708]
[1753481011319,3.4216,3727.4,3727.2,2.81735648]
[1753481011520,0.9506,3727.4,3727.2,2.81735648]
[1753481011864,0.7568,3727.8,3727.2,0.68444787]
[1753481012062,2.471,3727.5,3727.2,0.1344]
[1753481012220,1.7074,3727.4,3726.8,2.68322546]
[1753481012415,1.7074,3727.4,3727.0,0.1344]
[1753481012758,0.1344,3727.1,3726.7,2.68332226]
[1753481012935,0.1344,3727.1,3726.6,2.81778342]
[1753481013132,0.9506,3727.0,3726.6,0.1344]
[1753481013331,2.475,3727.3,3727.2,2.68297918]
[1753481013753,2.475,3727.4,3726.9,0.4565]
[1753481013931,2.475,3727.4,3727.3,2.81728168]
[1753481014133,2.475,3727.4,3727.3,0.1344]
[1753481014363,3.4256,3727.4,3726.8,2.68321151]
[1753481014522,0.9506,3727.3,3727.0,2.81747788]
[1753481014722,0.9506,3727.2,3727.0,2.81747788]
[1753481014962,0.4796,3727.1,3727.0,2.81747788]
[1753481015256,0.471,3727.2,3727.0,2.81747788]
[1753481015457,0.9506,3727.2,3727.0,2.81747788]
[1753481015623,0.9506,3727.2,3727.0,2.81751565]
[1753481016630,0.4796,3727.1,3727.0,2.68312315]
[1753481016832,0.9506,3727.2,3727.0,2.68312315]
[1753481017155,0.9506,3727.2,3727.0,2.6830757]
[1753481018754,2.475,3727.4,3727.0,2.6830757]
[1753481018942,0.4796,3727.3,3726.9,0.1344]
[1753481019257,2.946,3727.4,3727.2,2.68297918]
[1753481019660,3.4256,3727.4,3727.2,2.68297918]
[1753481019836,3.4256,3727.4,3727.1,2.68303183]
[1753481020447,2.475,3727.4,3727.1,2.68303183]
[1753481020758,3.4256,3727.4,3726.9,0.1344]
[1753481020947,2.475,3727.4,3727.1,2.68300649]
[1753481021146,0.1344,3727.5,3727.4,2.68283522]
[1753481021459,2.473,3727.5,3727.4,2.68283522]
[1753481021659,2.9526,3727.5,3727.4,2.68283522]
[1753481021862,0.4796,3727.5,3727.4,2.68283522]
[1753481022055,2.9526,3727.5,3727.3,0.1344]
[1753481022260,3.4236,3727.5,3727.3,0.1344]
[1753481022456,2.944,3727.5,3727.3,0.1344]
[1753481022634,0.4796,3727.4,3727.3,0.1344]
[1753481022959,0.9506,3727.4,3727.3,0.1344]
[1753481023325,0.9506,3727.4,3727.3,2.81730719]
[1753481024261,0.8133,3728.0,3727.6,2.68263078]
[1753481024461,0.9506,3727.9,3727.3,0.55003409]
[1753481024626,3.556,3727.8,3727.3,0.1344]
[1753481024821,0.8133,3728.0,3727.7,2.6826193]
[1753481025022,0.8133,3728.3,3727.8,0.4565]
[1753481025225,3.4256,3728.2,3728.0,0.1344]
[1753481025678,3.4256,3728.2,3728.0,2.81680048]
[1753481026027,3.4256,3728.2,3728.0,0.1344]
[1753481026222,2.946,3728.2,3728.0,0.1344]
[1753481026523,0.1344,3728.2,3727.7,0.1344]
[1753481026756,0.4796,3728.4,3727.9,0.1344]
[1753481026925,2.475,3728.1,3727.9,2.81682894]
[1753481027126,2.475,3728.1,3727.9,3.41243932]
[1753481027327,2.475,3728.1,3727.9,0.72999377]
[1753481027564,2.475,3728.1,3727.9,2.81685136]
[1753481027956,2.475,3728.1,3728.0,2.68240343]
[1753481028462,2.475,3728.1,3727.9,2.81685963]
[1753481028841,2.9546,3728.1,3727.9,2.81685963]
[1753481030082,2.9546,3728.1,3728.0,2.68240343]
[1753481030368,2.9546,3728.1,3727.9,2.81685548]
[1753481030571,2.9546,3728.1,3728.0,2.68240343]
[1753481030923,2.475,3728.1,3728.0,2.68240343]
[1753481031130,0.1344,3728.5,3728.0,0.54993402]
[1753481031328,1e-08,3729.2,3728.2,2.68225953]
[1753481031625,1e-08,3729.2,3728.8,2.68176909]
[1753481031626,2.473,3729.1,3728.8,2.68176909]
[1753481032042,3.4312,3729.1,3728.8,2.68176909]
[1753481032450,2.473,3729.1,3728.7,0.1344]
[1753481032745,0.9582,3729.0,3728.1,0.617]
[1753481032968,2.473,3729.1,3728.5,2.81638171]
[1753481033164,0.9582,3728.9,3728.5,2.81638171]
[1753481033682,0.9582,3728.8,3728.5,2.81638171]
[1753481033869,0.4639,3728.8,3728.5,2.81638171]
[1753481034073,0.9582,3728.7,3728.6,2.68197178]
[1753481034589,0.9582,3728.7,3728.5,2.81642125]
[1753481034985,0.9582,3728.7,3728.6,2.68197178]
[1753481035185,0.1344,3729.0,3728.6,2.68197178]
[1753481035186,1e-08,3729.2,3728.6,0.54984841]
[1753481035430,2.474,3728.7,3728.6,3.1724237]
[1753481035584,2.474,3728.7,3728.6,2.6819237]
[1753481036204,2.474,3728.7,3728.6,2.887783]
[1753481036734,2.474,3728.7,3728.6,3.378283]
[1753481037033,2.473,3728.8,3728.6,1.60812863]
[1753481037241,2.473,3728.8,3728.7,2.68189985]
[1753481037398,2.473,3728.8,3728.7,3.17239985]
[1753481037604,1e-08,3729.2,3728.6,0.617]
[1753481037820,2.472,3729.1,3729.0,2.68168409]
[1753481039103,1e-08,3729.2,3729.1,2.68161218]
[1753481039333,2.47200001,3729.2,3729.1,2.68161218]
[1753481039540,2.47200001,3729.2,3729.0,2.6816577]
[1753481039943,2.96630001,3729.2,3729.0,2.6816577]
[1753481040304,0.9582,3729.1,3728.6,0.20454929]
[1753481040527,0.9582,3729.0,3728.2,1.1075]
[1753481040732,0.9582,3729.0,3728.7,2.68185989]
[1753481040932,2.47200001,3729.2,3728.7,2.68185989]
[1753481041236,0.9582,3729.0,3728.9,2.68173684]
[1753481041735,2.47200001,3729.2,3729.1,2.68161218]
[1753481042034,2.47200001,3729.2,3728.7,0.4905]
[1753481042234,2.47200001,3729.2,3728.9,2.68171375]
[1753481042425,3.43020001,3729.2,3728.9,2.68171375]
[1753481042731,3.43020001,3729.2,3728.7,3.52718515]
[1753481042732,2.47,3729.1,3729.0,2.68162134]
[1753481043404,1e-08,3729.2,3728.8,2.68182149]
[1753481043405,1e-08,3729.2,3729.1,2.68161218]
[1753481043723,1e-08,3729.2,3728.9,3.29874877]
[1753481043724,1.7319,3729.1,3727.8,4.817]
[1753481043924,2.68181519,3728.9,3728.1,2.68226264]
[1753481044241,0.9582,3728.8,3728.1,2.68226264]
[1753481044405,2.6818396,3728.8,3728.1,2.6823263]
[1753481044732,0.7737,3728.6,3728.1,2.6823171]
[1753481044933,2.473,3728.5,3727.8,3.29954271]
[1753481045134,2.473,3728.5,3728.2,2.68218826]
[1753481045135,3.4312,3728.5,3728.2,2.68218826]
[1753481045306,2.9369,3728.5,3728.2,2.81658826]
[1753481045626,3.4312,3728.5,3728.2,0.1344]
[1753481046931,0.4943,3728.4,3728.2,0.1344]
[1753481047325,0.9582,3728.4,3728.2,2.81665294]
[1753481047529,0.9582,3728.4,3728.2,0.1344]
[1753481047730,0.9582,3728.3,3728.2,0.1344]
[1753481048127,0.9582,3728.3,3727.8,4.2]
[1753481048332,5.15505488,3728.5,3728.1,0.1344]
[1753481048517,0.7909,3728.1,3727.8,4.2]
[1753481048721,3.4292,3728.0,3727.8,4.2]
[1753481049011,0.9582,3727.9,3727.8,4.2]
[1753481049207,2.471,3728.0,3727.8,4.2]
[1753481049407,0.9582,3727.9,3727.8,7.01694734]
[1753481049730,2.471,3728.0,3727.8,4.3344]
[1753481050538,2.471,3728.0,3727.8,7.01690057]
[1753481050838,0.9582,3727.9,3727.8,4.3344]
[1753481051046,0.9582,3727.9,3727.8,4.2]
[1753481052510,0.9582,3727.9,3727.6,0.1344]
[1753481052841,4.45377721,3727.8,3727.3,0.1344]
[1753481053013,0.9582,3727.7,3727.3,2.8172954]
[1753481053213,3.49555276,3727.8,3727.3,0.1344]
[1753481053413,0.9582,3727.6,3727.3,0.1344]
[1753481053640,2.47,3727.5,3727.3,0.1344]
[1753481054012,3.4282,3727.5,3727.3,0.1344]
[1753481054836,2.47,3727.5,3727.3,0.1344]
[1753481055833,2.47,3727.5,3727.3,2.81730015]
[1753481056225,2.47,3727.5,3727.3,0.1344]
[1753481056424,2.9643,3727.5,3727.3,0.1344]
[1753481056629,0.9582,3727.4,3726.9,6.88316649]
[1753481056931,0.9582,3727.4,3726.9,7.95056459]
[1753481057149,5.15280701,3727.5,3727.0,2.81751637]
[1753481057150,0.9582,3727.3,3727.0,2.81751637]
[1753481057342,0.9582,3727.3,3727.0,2.81750789]
[1753481057537,2.47,3727.5,3727.0,2.81750789]
[1753481057741,3.4282,3727.5,3727.1,2.6830034]
[1753481057939,2.81702023,3727.7,3727.1,2.6830034]
[1753481058142,0.4943,3728.1,3727.2,1.48738962]
[1753481058351,0.7741,3728.2,3727.7,2.68257364]
[1753481058352,2.469,3728.0,3727.7,2.68257364]
[1753481058645,2.469,3728.0,3727.8,0.1344]
[1753481058846,3.4272,3728.0,3727.8,2.81693927]
[1753481059045,0.9582,3727.9,3727.5,2.68271739]
[1753481059250,0.9582,3727.8,3727.6,0.1344]
[1753481059752,1.8667,3727.7,3727.4,4.2]
[1753481060049,6.04124367,3727.6,3727.4,4.2]
[1753481060253,2.472,3727.6,3727.4,4.2]
[1753481060416,0.8865,3727.5,3727.4,4.2]
[1753481064746,0.8865,3727.5,3727.1,2.68304891]
[1753481064953,2.472,3727.6,3727.1,2.68304891]
[1753481064954,0.8865,3727.4,3727.1,2.68304891]
[1753481065650,0.4572,3727.3,3727.1,2.68304891]
[1753481065852,2.471,3727.2,3727.1,2.68304891]
[1753481066259,2.471,3727.2,3727.0,0.1344]
[1753481066464,0.9355,3727.1,3726.6,2.81774806]
[1753481066768,0.8865,3727.0,3726.6,0.1344]
[1753481066936,0.8865,3727.0,3726.7,2.68333706]
[1753481067135,0.8865,3726.9,3726.5,2.683474]
[1753481067336,2.47,3726.8,3726.5,2.817874]
[1753481067644,3.3565,3726.8,3726.5,2.817874]
[1753481068040,0.8865,3726.7,3726.0,10.00289309]
[1753481068246,1.2583,3726.6,3726.3,2.6836188]
[1753481068562,0.8865,3726.5,3726.3,2.6836188]
[1753481068866,2.47,3726.4,3726.3,2.6836188]
[1753481069265,2.47,3726.4,3725.8,0.4714]
[1753481069266,3.48479669,3726.3,3725.3,0.617]
[1753481069466,2.47,3726.4,3726.1,2.68376858]
[1753481069688,2.47,3726.4,3726.0,2.81821747]
[1753481070033,2.9272,3726.4,3726.0,2.81821747]
[1753481070232,2.9272,3726.4,3726.1,2.68376997]
[1753481070535,2.9272,3726.4,3726.1,2.68377123]
[1753481070735,2.47,3726.4,3726.1,2.68377123]
[1753481072469,2.47,3726.4,3726.2,2.68368878]
[1753481072649,2.47,3726.4,3726.1,2.68374249]
[1753481075542,2.9272,3726.4,3726.1,2.68374249]
[1753481075744,3.3565,3726.4,3726.1,2.68374249]
[1753481076452,2.8993,3726.4,3726.1,2.68374249]
[1753481076657,2.8993,3726.4,3726.0,0.1344]
[1753481076658,1.7043,3726.3,3726.0,0.1344]
[1753481076852,1.7043,3726.3,3726.0,2.81824113]
[1753481077187,0.8865,3726.2,3726.1,2.68377123]
[1753481077375,0.8865,3726.2,3725.6,5.38227634]
[1753481077376,0.8865,3726.2,3725.6,0.19638325]
[1753481077591,0.8865,3726.2,3725.9,0.1344]
[1753481077592,2.68384326,3726.0,3725.9,0.1344]
[1753481077798,0.8178,3725.5,3724.5,0.4714]
[1753481078086,2.469,3725.4,3724.5,8.34220459]
[1753481078248,2.469,3725.4,3724.6,2.68478218]
[1753481078249,5.15328756,3725.4,3724.6,2.68478218]
[1753481078447,0.8178,3725.5,3724.5,6.59342869]
[1753481078782,2.484,3725.4,3725.0,2.68456375]
[1753481078999,2.484,3725.4,3725.2,2.68437524]
[1753481079855,2.484,3725.4,3724.6,2.68485206]
[1753481080076,0.8865,3725.3,3724.7,0.4714]
[1753481080385,2.484,3725.4,3724.7,0.4714]
[1753481081085,2.484,3725.4,3725.1,2.68447263]
[1753481081486,3.3705,3725.4,3725.2,2.68441563]
[1753481081787,2.486,3725.3,3725.2,2.68440029]
[1753481086891,0.4572,3725.6,3725.2,2.68440029]
[1753481087194,2.484,3725.3,3725.2,2.68440029]
[1753481089393,2.484,3725.3,3725.1,0.1344]
[1753481089598,3.3705,3725.3,3725.1,0.1344]
[1753481090305,0.957,3725.2,3724.9,2.68463215]
[1753481090502,2.484,3725.3,3725.0,0.1344]
[1753481090710,0.957,3725.2,3725.0,0.1344]
[1753481091010,0.957,3725.2,3724.8,2.68470274]
[1753481091177,0.1344,3725.2,3724.8,2.68470274]
[1753481091502,2.6846967,3724.9,3723.9,4.2]
[1753481091665,2.6164,3724.8,3724.3,2.81942256]
[1753481092001,0.957,3724.7,3724.3,2.81942256]
[1753481092297,0.957,3724.6,3724.4,2.68498366]
[1753481092699,0.4652,3724.6,3724.3,2.81945798]
[1753481092867,0.4918,3724.5,3724.3,2.81945798]
[1753481093066,0.4918,3724.5,3724.4,2.68499624]
[1753481094304,0.4918,3724.5,3724.3,2.81944554]
[1753481094782,0.4918,3724.5,3724.3,0.1344]
[1753481095113,0.4652,3724.4,3724.3,0.1344]
[1753481095294,0.957,3724.4,3724.3,0.1344]
[1753481096090,1.7615,3724.4,3724.1,0.1344]
[1753481096291,2.9462,3724.3,3724.1,0.1344]
[1753481096494,3.438,3724.3,3724.1,0.1344]
[1753481096688,0.957,3724.2,3724.1,0.1344]
[1753481097498,2.68521253,3724.1,3723.7,4.2]
[1753481097676,0.957,3724.0,3723.7,0.1344]
[1753481098093,0.4652,3724.0,3723.7,0.1344]
[1753481098305,0.1344,3724.2,3723.7,0.1344]
[1753481098506,2.481,3724.1,3724.0,3.30227446]
[1753481098807,2.481,3724.1,3724.0,3.75747446]
[1753481099018,2.481,3724.1,3724.0,3.89187446]
[1753481099829,0.4918,3725.4,3724.6,2.68479644]
[1753481100018,0.4918,3725.1,3724.6,2.68478516]
[1753481100176,3.2902,3725.3,3724.7,2.68476345]
[1753481100379,0.4652,3725.1,3724.7,2.68476345]
[1753481100611,0.4652,3725.1,3724.9,2.68459169]
[1753481101309,0.957,3725.1,3724.9,2.68459169]
[1753481101526,0.957,3725.0,3724.4,4.6552]
[1753481101816,0.957,3725.0,3724.5,2.68487869]
[1753481101980,0.957,3724.9,3724.5,2.68487869]
[1753481102177,2.489,3724.8,3724.5,2.68490848]
[1753481102376,0.4918,3724.7,3724.6,2.6848439]
[1753481102573,0.42472,3725.1,3724.4,4.2]
[1753481102574,1.7652,3725.3,3724.8,2.68466429]
[1753481102809,2.489,3725.2,3724.8,2.68466429]
[1753481103306,2.489,3725.2,3724.9,2.68463525]
[1753481103516,1.7652,3725.3,3724.9,2.68458511]
[1753481103722,2.489,3725.1,3724.8,2.68468627]
[1753481104424,2.489,3725.1,3724.9,2.68462968]
[1753481104593,1.7652,3725.3,3724.9,2.68462968]
[1753481104788,2.9798,3725.2,3724.8,2.68468487]
[1753481105114,3.445,3725.2,3724.9,2.68463456]
[1753481105419,2.488,3725.2,3724.6,0.4552]
[1753481105624,2.9532,3725.2,3724.6,0.4552]
[1753481105824,0.4918,3725.1,3724.7,2.68473017]
[1753481106020,2.488,3725.2,3724.8,2.68469785]
[1753481106227,0.957,3725.0,3724.8,2.68469785]
[1753481108908,0.957,3725.0,3724.7,2.68476069]
[1753481109292,0.957,3725.0,3724.8,2.68470549]
[1753481109749,0.957,3725.0,3724.8,2.81910549]
[1753481109926,3.445,3725.2,3724.9,2.68457756]
[1753481110129,3.445,3725.2,3724.8,2.81908315]
[1753481110797,3.445,3725.2,3724.8,0.1344]
[1753481110993,3.445,3725.2,3724.8,2.81910039]
[1753481111210,0.957,3725.1,3724.8,2.81904252]
[1753481112129,0.957,3725.1,3724.8,0.1344]
[1753481112327,0.8252,3724.9,3724.4,4.2]
[1753481112528,0.8252,3724.9,3724.5,0.1344]
[1753481112529,3.44,3724.8,3724.5,0.1344]
[1753481112705,2.483,3724.8,3724.5,0.1344]
[1753481112909,0.957,3724.7,3724.5,0.1344]
[1753481113430,0.957,3724.6,3724.4,4.3344]
[1753481113603,0.957,3724.6,3724.4,2.81937877]
[1753481113933,2.9748,3724.8,3724.4,0.1344]
[1753481114132,0.4918,3724.6,3724.4,0.1344]
[1753481114748,0.957,3724.6,3724.4,0.1344]
[1753481115128,0.957,3724.6,3724.4,2.81938361]
[1753481115430,0.957,3724.6,3724.4,0.1344]
[1753481115631,0.957,3724.5,3724.1,2.68521155]
[1753481115832,3.439,3724.4,3724.1,2.81961155]
[1753481116600,0.7731,3724.3,3724.1,0.1344]
[1753481116800,1.7301,3724.3,3723.8,4.2]
[1753481117028,1.0914,3724.2,3723.8,4.2]
[1753481117239,1.0914,3724.2,3723.7,0.1344]
[1753481117429,0.1344,3724.2,3723.7,0.1344]
[1753481117641,0.957,3724.1,3723.7,0.1344]
[1753481117853,3.439,3724.0,3723.7,0.1344]
[1753481118619,3.439,3724.0,3723.7,2.81989883]
[1753481118844,3.439,3724.0,3723.7,0.1344]
[1753481119054,0.4918,3723.9,3723.7,0.1344]
[1753481119254,0.957,3723.9,3723.7,0.1344]
[1753481120929,0.494,3723.8,3723.7,0.1344]
[1753481121513,0.9674,3723.8,3723.7,0.1344]
[1753481123322,0.9674,3723.8,3723.4,2.82010714]
[1753481123555,0.9674,3723.7,3723.4,2.82010714]
[1753481123758,2.48,3723.6,3723.4,2.82010714]
[1753481124423,2.48,3723.6,3723.5,2.68564522]
[1753481125369,0.1344,3723.9,3723.4,0.1344]
[1753481125370,0.1344,3723.9,3723.8,2.68542886]
[1753481125532,2.68396308,3725.9,3724.2,2.68513288]
[1753481125533,4.53715533,3724.8,3724.2,2.68513288]
[1753481125732,2.48,3724.7,3724.3,0.1344]
[1753481126034,3.4474,3724.7,3724.3,0.1344]
[1753481126233,1.66911553,3724.6,3724.3,0.1344]
[1753481126680,3.65237024,3724.5,3723.6,4.2]
[1753481126863,1.1018,3724.4,3723.8,2.81982595]
[1753481127059,2.481,3724.3,3723.8,2.81982595]
[1753481127268,0.9674,3724.2,3723.8,2.81982595]
[1753481127734,0.9674,3724.1,3723.8,2.81982595]
[1753481128067,0.9674,3724.0,3723.8,2.81982595]
[1753481128270,0.494,3724.0,3723.9,2.68535674]
[1753481128480,0.494,3724.0,3723.9,2.68533376]
[1753481128481,2.481,3724.0,3723.9,2.68533376]
[1753481130171,2.481,3724.0,3723.8,2.81980976]
[1753481130469,2.48,3723.9,3723.8,0.5876]
[1753481130669,2.48,3723.9,3723.8,2.81982886]
[1753481131466,2.48,3723.9,3723.8,0.1344]
[1753481131672,4.486,3723.9,3723.0,0.617]
[1753481131837,4.486,3723.9,3722.8,5.18589309]
[1753481131838,0.1344,3723.6,3723.1,2.82028909]
[1753481132035,0.9674,3723.5,3723.1,0.1344]
[1753481132234,0.7906,3723.3,3723.1,0.1344]
[1753481132460,0.9674,3723.2,3723.1,0.1344]
[1753481133453,0.7906,3723.3,3723.1,0.1344]
[1753481133753,0.9674,3723.2,3723.1,0.1344]
[1753481134258,2.48,3723.4,3723.1,0.1344]
[1753481134460,2.48,3723.4,3723.2,2.68581648]
[1753481135175,2.48,3723.4,3723.1,2.82030851]
[1753481136377,2.48,3723.4,3723.2,2.68585612]
[1753481137177,2.48,3723.4,3723.1,2.82032015]
[1753481137581,2.48,3723.4,3723.2,2.6858581]
[1753481139888,1.751,3723.9,3723.4,2.68568946]
[1753481140193,2.477,3723.8,3723.4,2.68568946]
[1753481140472,3.4444,3723.8,3723.5,2.6856414]
[1753481140650,0.918,3723.9,3723.6,2.68553975]
[1753481140845,2.477,3723.8,3723.6,2.68552773]
[1753481142645,0.9674,3723.7,3722.9,5.80289309]
[1753481142874,0.9674,3723.7,3723.3,0.1344]
[1753481142875,1.2837,3723.6,3723.3,0.1344]
[1753481143082,1.7571,3723.6,3723.3,0.1344]
[1753481143374,0.9674,3723.5,3723.2,2.68580463]
[1753481143556,2.476,3723.4,3723.2,2.68580463]
[1753481143747,2.97,3723.4,3723.1,2.82031003]
[1753481143947,2.476,3723.4,3723.1,0.1344]
[1753481144171,2.476,3723.4,3723.3,2.68578948]
[1753481144981,5.2861,3724.1,3723.4,2.68571735]
[1753481145180,2.476,3724.0,3723.4,2.68571735]
[1753481145358,2.476,3724.0,3723.6,2.81992831]
[1753481145768,3.4434,3724.0,3723.6,2.81992831]
[1753481146576,3.4434,3724.0,3723.6,0.1344]
[1753481146877,0.9674,3723.9,3723.6,2.81997232]
[1753481147986,0.9674,3723.9,3723.6,0.1344]
[1753481148159,0.9674,3723.9,3723.6,2.81996776]
[1753481148771,0.9674,3723.9,3723.7,2.68549373]
[1753481148954,2.476,3724.0,3723.6,2.81994495]
[1753481149382,3.4434,3724.0,3723.6,2.81994495]
[1753481150081,3.4434,3724.0,3723.6,0.1344]
[1753481150584,2.476,3724.0,3723.6,0.1344]
[1753481150763,0.9315,3723.9,3723.6,0.1344]
[1753481152481,0.4385,3723.9,3723.6,0.1344]
[1753481152688,0.9315,3723.9,3723.6,0.1344]
[1753481152985,0.9315,3723.9,3723.6,2.81996351]
[1753481153184,2.476,3724.0,3723.6,2.81996351]
[1753481153680,0.493,3723.9,3723.6,2.81996351]
[1753481153885,0.9315,3723.9,3723.6,2.81996351]
[1753481154185,0.9315,3723.9,3723.6,0.1344]
[1753481154486,2.476,3724.0,3723.6,0.1344]
[1753481154785,0.9315,3723.8,3723.6,0.1344]
[1753481154985,2.474,3723.7,3723.6,0.1344]
[1753481156063,2.474,3723.7,3723.4,2.68570217]
[1753481156064,3.4055,3723.7,3723.4,2.68570217]
[1753481156286,0.9315,3723.6,3723.3,2.82012105]
[1753481156485,0.9315,3723.5,3723.3,2.82012105]
[1753481156686,3.3005,3723.7,3723.3,2.82012105]
[1753481156874,0.9315,3723.4,3723.3,2.82012105]